bitfinex/quotes_ETHUSD_20240614
["timestamp","ask_amount","ask_price","bid_price","bid_amount"]
[1718383565442,0.0228791,3398.4,3397.2,2.94357]
[1718383565758,2.94273,3398.2,3397.4,2.94342]
[1718383565882,2.94273,3398.2,3397.3,4.49230682]
[1718383565883,2.9656991,3398.1,3397.5,1.43344514]
[1718383566226,2.94291,3398.0,3397.5,1.43344514]
[1718383566804,2.94274,3398.2,3397.5,1.43344514]
[1718383566983,2.94309,3397.8,3397.0,2.94376]
[1718383567343,7.3075,3400.3,3397.5,1.43344514]
[1718383567475,2.94141,3399.8,3398.5,1.43344514]
[1718383567688,0.0228791,3399.7,3398.5,1.43344514]
[1718383567933,0.0228791,3399.7,3398.6,0.05884404]
[1718383568139,3.0285,3400.3,3398.7,4.37571514]
[1718383568359,2.9638991,3400.2,3398.8,3.05882997]
[1718383568658,2.9638991,3400.2,3399.2,2.94185]
[1718383568659,2.94118,3400.0,3399.2,2.94185]
[1718383568792,2.94127,3399.9,3399.3,1.43344514]
[1718383569235,2.94135,3399.8,3399.3,1.43344514]
[1718383569744,2.94089,3400.4,3399.3,1.43344514]
[1718383569896,2.94067,3400.6,3399.6,2.94149]
[1718383570098,2.94067,3400.6,3399.7,1.49226478]
[1718383570291,0.29405,3400.7,3399.7,1.49226478]
[1718383570495,2.9633691,3400.8,3400.1,2.94106]
[1718383570746,3.1011,3401.7,3399.7,1.49226478]
[1718383570747,2.94031,3401.0,3400.2,4.43323835]
[1718383570906,2.93997,3401.4,3400.3,0.05881148]
[1718383571231,2.93983,3401.6,3400.6,2.94063]
[1718383571435,2.93988,3401.5,3400.7,0.05880113]
[1718383571636,0.1202585,3402.3,3401.2,2.94012]
[1718383571940,0.0228791,3402.2,3400.7,7.279]
[1718383572137,0.0228791,3402.2,3400.1,7.279]
[1718383572342,2.94041,3400.9,3400.2,1.43344514]
[1718383572635,2.93962,3401.8,3399.5,7.279]
[1718383572636,2.94075,3400.5,3399.5,7.279]
[1718383572840,2.94075,3400.5,3399.6,1.43344514]
[1718383572841,2.9411,3400.1,3399.6,1.43344514]
[1718383573045,0.0228791,3400.0,3398.3,5.99221]
[1718383573342,2.94145,3399.7,3398.4,2.94253]
[1718383573554,2.94213,3398.9,3398.2,2.94265]
[1718383573698,2.94188,3399.2,3397.7,7.4356]
[1718383573903,3.1857,3399.5,3398.6,2.94237]
[1718383573904,2.94171,3399.4,3398.6,2.94237]
[1718383574263,2.94171,3399.4,3397.7,7.4356]
[1718383574264,2.94207,3399.0,3397.7,4.279]
[1718383574397,2.94207,3399.0,3397.1,0.29114495]
[1718383574398,2.94291,3398.0,3397.1,7.51380495]
[1718383574600,2.94291,3398.0,3397.1,4.279]
[1718383574601,2.94309,3397.8,3397.1,4.279]
[1718383574903,0.0228791,3397.7,3396.5,4.279]
[1718383575160,1.98344514,3399.3,3396.5,6.74810214]
[1718383575368,0.0228791,3399.2,3398.5,2.94245]
[1718383575511,0.0228791,3399.2,3397.5,4.279]
[1718383575512,0.0228791,3399.2,3397.5,6.042]
[1718383575812,0.0228791,3399.2,3397.9,2.94298]
[1718383576012,2.94164,3399.5,3398.5,2.94244]
[1718383576230,0.3464576,3399.4,3398.1,2.94279]
[1718383576539,0.3464576,3399.4,3398.7,2.94229]
[1718383576712,0.0228791,3399.4,3398.7,2.94229]
[1718383576918,3.2082,3400.2,3398.7,2.94229]
[1718383576919,2.94135,3399.8,3399.0,2.94203]
[1718383577212,2.94169,3399.5,3398.7,2.94229]
[1718383577415,6.14923,3400.2,3398.8,4.43344514]
[1718383577612,2.9409,3400.4,3398.9,2.97041932]
[1718383577837,2.9403,3401.1,3399.4,2.94168]
[1718383578041,6.1364,3401.5,3399.4,2.94168]
[1718383578042,2.9405,3400.8,3400.0,2.94117]
[1718383578212,2.9405,3400.8,3399.5,4.40343959]
[1718383578213,2.94046,3400.9,3400.1,1.47177239]
[1718383578560,2.94,3401.4,3400.4,2.94081]
[1718383578902,2.94005,3401.3,3400.4,2.94081]
[1718383579055,2.93996,3401.5,3400.6,2.94065]
[1718383579225,2.94013,3401.2,3400.5,1.43344514]
[1718383579425,2.94049,3400.8,3400.2,3.0]
[1718383579767,2.94049,3400.8,3399.5,4.70452]
[1718383579768,2.94083,3400.4,3399.6,2.94146]
[1718383580054,2.9404,3400.9,3399.7,7.37484514]
[1718383580222,2.94083,3400.4,3399.7,7.37484514]
[1718383580427,2.94074,3400.5,3399.7,7.37484514]
[1718383580658,2.94049,3400.8,3399.9,2.94122]
[1718383580855,0.0228791,3400.7,3400.1,2.94108]
[1718383581054,0.0228791,3400.7,3400.0,4.37459514]
[1718383581217,0.0228791,3400.7,3400.1,2.94108]
[1718383581420,2.93975,3401.7,3400.4,2.94082]
[1718383581713,0.3462537,3401.4,3400.5,1.43344514]
[1718383581910,3.275,3402.2,3400.6,0.05089073]
[1718383582137,2.93947,3402.0,3400.7,4.37396514]
[1718383582340,2.93962,3401.8,3400.8,5.94044]
[1718383582523,6.21431,3402.2,3401.2,2.94011]
[1718383582734,0.0228791,3402.1,3400.8,3.0]
[1718383582932,0.0228791,3402.1,3400.3,3.0]
[1718383582933,2.93988,3401.5,3400.3,3.0]
[1718383583133,2.94023,3401.1,3400.3,4.43344514]
[1718383583420,0.63574476,3402.0,3399.5,1.763]
[1718383583421,2.94057,3400.7,3399.9,5.88248]
[1718383583647,2.94057,3400.7,3399.6,4.279]
[1718383583648,2.93913,3402.4,3400.0,4.43344514]
[1718383583854,2.94002,3401.4,3400.0,4.43344514]
[1718383584050,2.94056,3400.8,3400.0,1.43344514]
[1718383584367,0.0228791,3400.7,3400.1,2.94105]
[1718383584579,0.0228791,3400.9,3400.2,7.37444514]
[1718383584871,2.94049,3400.8,3400.2,4.43344514]
[1718383585052,2.94022,3401.1,3400.3,2.9409]
[1718383585257,0.294002,3401.3,3400.6,2.94064]
[1718383585461,2.93937,3402.1,3400.7,4.37393514]
[1718383585801,3.09,3402.5,3400.7,4.37393514]
[1718383585802,2.9624291,3401.9,3400.7,1.43344514]
[1718383585928,2.94031,3401.1,3400.1,2.94101]
[1718383586126,0.0228791,3401.0,3399.6,4.279]
[1718383586325,2.9402,3401.2,3399.8,1.43344514]
[1718383586569,0.91839601,3401.1,3400.0,1.43344514]
[1718383586788,6.09,3401.9,3400.1,0.0583672]
[1718383586789,0.0228791,3401.0,3400.1,0.0583672]
[1718383587073,2.9398,3401.6,3400.8,2.94047]
[1718383587280,3.57522476,3402.0,3401.1,2.92551]
[1718383587435,2.93901,3402.5,3401.2,1.43344514]
[1718383587632,2.9621491,3402.2,3401.3,2.9958312]
[1718383587867,0.0228791,3402.2,3401.4,1.43344514]
[1718383588059,3.0594785,3402.3,3401.5,2.99567483]
[1718383588060,3.0594685,3402.3,3401.5,2.99567483]
[1718383588375,3.0594685,3402.3,3401.6,1.43344514]
[1718383588698,2.9397,3401.8,3400.2,4.279]
[1718383588969,0.1202585,3402.3,3400.8,1.43344514]
[1718383589187,2.9621691,3402.2,3401.4,2.93991]
[1718383589331,2.9621691,3402.2,3401.5,1.43344514]
[1718383589530,2.9621691,3402.2,3401.1,2.94022]
[1718383589531,2.93959,3401.9,3401.1,2.94022]
[1718383589733,0.1202585,3402.3,3401.4,2.93988]
[1718383589947,2.93944,3402.0,3401.5,1.43344514]
[1718383590770,2.93927,3402.2,3401.5,1.43344514]
[1718383591567,3.0594385,3402.3,3401.5,1.43344514]
[1718383591568,2.93936,3402.1,3401.5,1.43344514]
[1718383591869,3.0594385,3402.3,3401.5,1.43344514]
[1718383592071,0.0228791,3402.2,3401.5,1.43344514]
[1718383592879,3.65929435,3402.3,3401.5,1.43344514]
[1718383592880,0.72010435,3402.3,3401.7,2.9397]
[1718383593060,0.1202585,3402.3,3401.8,1.43344514]
[1718383593269,0.1202585,3402.3,3402.1,2.93934]
[1718383593478,0.1202585,3402.3,3402.2,2.93927]
[1718383594133,0.1202585,3402.3,3402.2,4.37271514]
[1718383594577,0.1202585,3402.3,3401.9,2.93952]
[1718383594747,0.1202585,3402.3,3402.0,1.43344514]
[1718383594959,0.1202585,3402.3,3401.5,3.0]
[1718383594960,3.0594485,3402.3,3401.6,2.93977]
[1718383595152,0.42849126,3402.3,3401.7,4.37313514]
[1718383595484,0.1202585,3402.3,3401.9,2.93948]
[1718383595681,0.1202585,3402.3,3402.2,2.93927]
[1718383595975,0.1202585,3402.3,3402.2,4.37271514]
[1718383596176,0.1202585,3402.3,3402.2,7.31198514]
[1718383596381,0.1202585,3402.3,3402.2,4.43344514]
[1718383596694,0.1202585,3402.3,3402.2,4.37271514]
[1718383596838,0.1202585,3402.3,3402.2,13.25125514]
[1718383597039,0.1202585,3402.3,3402.2,14.87638065]
[1718383597292,0.1202585,3402.3,3402.2,13.80125514]
[1718383597688,0.1202585,3402.3,3402.2,7.37271514]
[1718383598071,0.1202585,3402.3,3402.2,4.43344514]
[1718383598280,0.1202585,3402.3,3402.2,1.43344514]
[1718383598940,0.1202585,3402.3,3402.0,3.0]
[1718383599091,0.1202585,3402.3,3401.4,2.93995]
[1718383599288,3.0595185,3402.3,3401.6,2.9397]
[1718383599491,0.1202585,3402.3,3401.7,1.43344514]
[1718383600004,0.1202585,3402.3,3401.7,4.37313514]
[1718383600199,0.1202585,3402.3,3402.0,2.93943]
[1718383600414,0.1202585,3402.3,3402.0,1.43344514]
[1718383600829,0.1202585,3402.3,3401.8,3.0]
[1718383601113,0.1202585,3402.3,3401.1,2.94019]
[1718383601114,2.93986,3401.6,3400.9,2.94039]
[1718383601274,0.0228791,3401.5,3400.3,2.94091]
[1718383601477,0.42848226,3402.3,3400.8,2.94041]
[1718383601783,0.1202585,3402.3,3401.5,2.93981]
[1718383601985,3.0595185,3402.3,3401.6,1.43344514]
[1718383602302,0.1202585,3402.3,3401.7,2.93968]
[1718383602622,0.1202585,3402.3,3401.8,4.43344514]
[1718383602782,0.1202585,3402.3,3401.8,7.37298514]
[1718383602979,0.1202585,3402.3,3401.8,4.43344514]
[1718383603212,0.1202585,3402.3,3401.8,1.43344514]
[1718383603883,3.0594485,3402.3,3401.8,1.43344514]
[1718383604282,0.1202585,3402.3,3401.8,1.43344514]
[1718383604616,0.1202585,3402.3,3401.8,4.37304514]
[1718383604917,0.1202585,3402.3,3401.9,3.0]
[1718383605091,2.93927,3402.2,3401.9,1.43344514]
[1718383605301,3.0594485,3402.3,3401.9,1.43344514]
[1718383605637,2.93928,3402.2,3401.9,1.43344514]
[1718383605792,3.0594485,3402.3,3401.9,1.43344514]
[1718383605793,2.93937,3402.1,3401.9,1.43344514]
[1718383605989,0.1202585,3402.3,3402.0,1.43344514]
[1718383606207,0.1202585,3402.3,3402.1,2.93928]
[1718383606406,0.1202585,3402.3,3402.2,4.43139228]
[1718383606589,0.1202585,3402.3,3402.2,10.37066228]
[1718383607193,0.11771856,3402.3,3402.2,13.30993228]
[1718383607393,2.93824,3403.4,3402.6,2.93891]
[1718383607629,2.93814,3403.6,3402.8,2.9387]
[1718383607924,2.93833,3403.3,3402.6,2.93892]
[1718383608127,2.93833,3403.3,3402.7,4.43344514]
[1718383608330,3.2157,3404.2,3402.7,4.43344514]
[1718383608505,2.93883,3402.8,3402.1,2.93929]
[1718383608707,2.93883,3402.8,3402.2,4.43344514]
[1718383608979,2.93774,3404.0,3402.2,4.43344514]
[1718383609087,2.93845,3403.2,3402.5,2.93894]
[1718383609454,2.93845,3403.2,3402.6,1.43344514]
[1718383609588,2.93816,3403.5,3402.8,2.93874]
[1718383609794,2.93816,3403.5,3402.9,1.43344514]
[1718383609993,2.93824,3403.4,3402.9,1.43344514]
[1718383610249,3.56821,3404.1,3402.9,1.43344514]
[1718383610436,3.56821,3404.1,3403.2,2.93839]
[1718383610437,2.9606191,3404.0,3403.2,2.93839]
[1718383610734,2.93789,3403.8,3403.2,1.43344514]
[1718383611096,3.56821,3404.1,3403.2,1.43344514]
[1718383611293,2.93781,3403.9,3403.2,1.43344514]
[1718383611938,2.93789,3403.8,3403.2,1.43344514]
[1718383612292,2.93713,3404.7,3403.3,1.43344514]
[1718383612293,2.9378,3403.9,3403.3,1.43344514]
[1718383612492,2.93751,3404.3,3403.3,1.43344514]
[1718383612716,2.93783,3403.9,3403.3,1.43344514]
[1718383612930,2.93789,3403.8,3403.3,1.43344514]
[1718383613431,3.831021,3404.2,3403.3,4.37169514]
[1718383613432,2.93762,3404.2,3403.3,4.37169514]
[1718383613603,3.2697,3405.0,3403.3,4.37169514]
[1718383613604,2.93735,3404.5,3403.3,4.37169514]
[1718383613936,2.93728,3404.6,3403.8,2.93787]
[1718383614169,2.9366,3405.3,3404.2,2.93747]
[1718383614323,0.0228791,3405.2,3404.3,1.4921851]
[1718383614508,2.93677,3405.1,3404.3,4.4296351]
[1718383614709,2.93669,3405.2,3404.4,2.93736]
[1718383614909,2.93669,3405.2,3404.5,1.43344514]
[1718383615413,2.93668,3405.2,3404.5,1.43344514]
[1718383615642,2.9366,3405.3,3404.5,7.37072514]
[1718383615810,0.1202585,3405.8,3404.7,2.93703]
[1718383616010,2.93635,3405.6,3404.8,4.37045514]
[1718383616212,0.0228791,3405.7,3404.8,4.37045514]
[1718383616213,2.93647,3405.5,3404.8,1.43344514]
[1718383616865,2.93647,3405.5,3404.8,4.43344514]
[1718383617171,0.1202585,3405.8,3404.8,7.37046514]
[1718383617327,3.0564285,3405.8,3405.0,2.93685]
[1718383617526,3.0564285,3405.8,3405.1,1.45180278]
[1718383617527,0.1202585,3405.8,3405.1,1.45180278]
[1718383617727,0.1202585,3405.8,3405.2,0.05870319]
[1718383617961,0.1202585,3405.8,3405.2,1.49214833]
[1718383618367,0.1202585,3405.8,3405.5,2.93639]
[1718383618538,0.1202585,3405.8,3405.6,4.49216552]
[1718383619631,0.1202585,3405.8,3405.7,2.93625]
[1718383619941,0.1202585,3405.8,3405.7,4.36969514]
[1718383620160,0.1202585,3405.8,3405.7,17.52119514]
[1718383620371,0.1202585,3405.8,3405.7,9.41545265]
[1718383620678,0.1202585,3405.8,3405.7,4.43344514]
[1718383620894,0.1202585,3405.8,3405.7,7.30594514]
[1718383621031,0.0228791,3407.2,3405.7,4.98344514]
[1718383621234,2.93488,3407.3,3406.3,1.43344514]
[1718383621437,3.1329791,3407.2,3406.0,3.0]
[1718383621656,2.93548,3406.6,3405.8,2.93615]
[1718383621871,2.9584391,3406.5,3405.9,1.43344514]
[1718383622074,2.9354,3406.7,3406.0,2.93598]
[1718383622370,2.93548,3406.6,3406.1,1.43344514]
[1718383622756,3.1101,3407.2,3406.1,1.43344514]
[1718383622942,2.93555,3406.6,3406.1,1.43344514]
[1718383623166,2.93558,3406.5,3406.1,1.43344514]
[1718383623374,0.0228791,3406.4,3405.8,3.0]
[1718383623550,0.0228791,3406.4,3404.6,3.0305]
[1718383623742,0.0228791,3406.4,3404.4,2.93733]
[1718383623743,2.93636,3405.6,3404.4,2.93733]
[1718383624135,2.93695,3404.9,3404.1,2.93762]
[1718383624269,2.93676,3405.2,3404.3,2.93744]
[1718383624609,3.0675,3406.3,3404.9,2.93688]
[1718383624782,0.0228791,3406.2,3405.0,1.43344514]
[1718383625105,0.0228791,3406.2,3404.0,3.0305]
[1718383625106,1.43344514,3406.1,3404.0,3.0305]
[1718383625272,2.93673,3405.2,3403.8,0.293787]
[1718383625474,2.93704,3404.8,3403.9,1.43344514]
[1718383625676,2.9372,3404.6,3403.9,1.43344514]
[1718383626005,2.93771,3404.1,3403.3,2.93831]
[1718383626190,2.93747,3404.3,3403.5,2.93811]
[1718383626411,3.3133,3405.2,3403.6,1.43344514]
[1718383626713,3.55,3406.2,3403.5,0.73098651]
[1718383626714,2.9596891,3405.1,3404.0,1.43344514]
[1718383627020,2.93651,3405.4,3404.3,2.93739]
[1718383627200,2.93723,3404.6,3403.9,3.2748]
[1718383627518,2.93651,3405.4,3404.7,2.93703]
[1718383627737,2.93645,3405.5,3404.7,1.43344514]
[1718383627909,2.93696,3404.9,3404.0,0.32748]
[1718383628220,2.93704,3404.8,3404.1,1.43344514]
[1718383628423,2.93704,3404.8,3404.1,4.37106514]
[1718383628707,2.93704,3404.8,3404.2,3.0]
[1718383629042,2.93688,3405.0,3404.3,1.43344514]
[1718383629217,0.0228791,3404.9,3404.0,3.0]
[1718383629419,2.93747,3404.3,3404.0,1.43344514]
[1718383630112,2.93772,3404.0,3403.6,3.0]
[1718383630320,2.93721,3404.6,3403.6,1.43344514]
[1718383630470,2.93807,3403.6,3402.7,3.54176361]
[1718383630673,2.93826,3403.4,3402.7,2.93883]
[1718383630868,2.93773,3404.0,3402.7,2.93883]
[1718383631124,2.93773,3404.0,3403.1,2.93849]
[1718383631270,2.93723,3404.6,3403.9,2.93772]
[1718383631476,0.0228791,3404.5,3403.3,2.9383]
[1718383631781,2.93758,3404.2,3403.4,1.72727514]
[1718383631986,2.93764,3404.1,3403.4,1.72727514]
[1718383632184,2.93764,3404.1,3403.4,1.43344514]
[1718383632185,0.0228791,3404.0,3403.4,1.43344514]
[1718383632382,0.0228791,3404.0,3402.6,3.1377]
[1718383632383,2.93798,3403.7,3402.6,3.1377]
[1718383632582,2.93823,3403.4,3402.7,1.43344514]
[1718383633008,2.93814,3403.6,3402.8,2.93873]
[1718383633174,2.93814,3403.6,3402.9,1.43344514]
[1718383633501,2.93763,3404.1,3403.2,2.9384]
[1718383633676,2.9378,3403.9,3403.3,1.43344514]
[1718383633876,2.93797,3403.8,3403.3,1.43344514]
[1718383634106,2.93772,3404.0,3403.3,1.43344514]
[1718383634271,2.93789,3403.8,3403.3,1.43344514]
[1718383634488,2.93797,3403.7,3403.3,1.43344514]
[1718383635211,2.93781,3403.9,3403.3,1.43344514]
[1718383635658,2.93789,3403.8,3403.3,1.43344514]
[1718383635947,2.93781,3403.9,3403.3,2.46448965]
[1718383636100,2.93746,3404.3,3403.3,4.43344514]
[1718383636302,2.93737,3404.4,3403.4,2.93823]
[1718383636527,2.93729,3404.5,3403.6,2.93805]
[1718383636730,2.93746,3404.3,3403.7,1.43344514]
[1718383636942,2.93729,3404.5,3403.5,3.0]
[1718383636943,2.93765,3404.1,3403.5,3.0]
[1718383637103,2.93749,3404.3,3403.5,1.43344514]
[1718383637324,2.93764,3404.1,3403.5,1.43344514]
[1718383637647,2.93716,3404.7,3403.6,1.43344514]
[1718383637945,0.0228791,3404.6,3403.9,2.9378]
[1718383638145,0.0228791,3404.6,3404.0,1.43344514]
[1718383638358,2.9371,3404.8,3404.0,4.37113514]
[1718383638657,2.93712,3404.7,3404.0,1.43344514]
[1718383638818,2.93712,3404.7,3404.0,4.43344514]
[1718383639010,2.93712,3404.7,3404.0,7.37115514]
[1718383639213,6.06591,3405.2,3404.0,4.43344514]
[1718383639214,2.9601491,3404.6,3404.0,4.43344514]
[1718383639532,2.93731,3404.5,3404.0,1.43344514]
[1718383640304,3.09,3406.2,3404.2,1.43344514]
[1718383640509,2.93686,3405.0,3404.2,4.43344514]
[1718383640856,2.93712,3404.7,3404.2,4.43344514]
[1718383641002,2.93652,3405.4,3404.0,3.0]
[1718383641003,2.93749,3404.3,3404.0,3.0]
[1718383641206,2.93752,3404.3,3403.5,5.93815]
[1718383641408,2.93752,3404.3,3403.6,4.37150514]
[1718383641657,2.93724,3404.6,3403.7,3.0]
[1718383641956,3.3045,3405.2,3403.8,1.43344514]
[1718383641957,2.93719,3404.7,3403.8,1.43344514]
[1718383642246,2.9373,3404.5,3403.8,4.37130514]
[1718383642464,2.93739,3404.4,3403.9,3.0]
[1718383642599,2.93739,3404.4,3403.9,1.43344514]
[1718383642805,2.93729,3404.5,3403.7,3.0]
[1718383643005,2.93729,3404.5,3402.8,44.1259]
[1718383643006,2.9377,3404.1,3403.2,2.93839]
[1718383643249,0.0228791,3404.0,3403.3,1.43344514]
[1718383643414,2.93799,3403.7,3403.3,1.43344514]
[1718383644470,2.9379,3403.8,3403.3,1.43344514]
[1718383645112,2.93798,3403.7,3403.3,1.43344514]
[1718383645448,2.9379,3403.8,3403.3,1.43344514]
[1718383645821,2.93813,3403.6,3403.1,3.381]
[1718383646020,2.93822,3403.5,3403.2,1.43344514]
[1718383646221,0.587437,3404.5,3402.5,2.93901]
[1718383646222,2.93841,3403.2,3402.5,2.93901]
[1718383646427,2.93841,3403.2,3402.6,1.43344514]
[1718383647057,2.93851,3403.1,3402.6,1.43344514]
[1718383647210,2.93841,3403.2,3402.6,1.43344514]
[1718383647415,2.93858,3403.0,3402.6,1.43344514]
[1718383647960,2.93841,3403.2,3402.6,1.43344514]
[1718383648830,2.93851,3403.1,3402.6,1.43344514]
[1718383649048,2.93842,3403.2,3402.6,1.43344514]
[1718383649230,2.9612991,3403.2,3402.6,1.43344514]
[1718383649654,0.0228791,3403.2,3402.6,1.43344514]
[1718383649839,0.0228791,3403.2,3402.1,6.4714]
[1718383649840,2.93867,3402.9,3402.2,3.0]
[1718383650055,2.93875,3402.8,3402.3,1.43344514]
[1718383651138,2.93845,3403.2,3402.3,1.43344514]
[1718383651343,0.0228791,3403.1,3402.5,2.93899]
[1718383651636,2.93831,3403.4,3402.6,3.0]
[1718383651823,2.93858,3403.0,3402.5,3.0]
[1718383652023,0.0228791,3402.9,3402.3,3.0]
[1718383652219,0.0228791,3402.9,3402.4,1.43344514]
[1718383652444,0.0228791,3402.9,3402.3,3.0]
[1718383652445,2.93876,3402.8,3402.3,3.0]
[1718383652668,2.93876,3402.8,3401.3,1.763]
[1718383652669,2.93893,3402.6,3401.3,6.321]
[1718383652833,6.02815,3403.6,3401.4,4.37339514]
[1718383652834,2.93938,3402.1,3401.4,4.37339514]
[1718383653032,2.9396,3401.9,3401.4,1.43344514]
[1718383653479,2.93946,3402.0,3401.4,1.43344514]
[1718383653763,2.93937,3402.1,3401.4,4.37340514]
[1718383654128,2.93937,3402.1,3400.9,6.21355]
[1718383654129,2.93988,3401.5,3400.8,1.175844]
[1718383654289,2.9629191,3401.4,3400.9,1.43344514]
[1718383654597,0.0228791,3401.3,3400.0,2.94117]
[1718383654735,2.94056,3400.8,3400.1,2.94106]
[1718383654941,2.93989,3401.5,3400.1,2.94106]
[1718383654942,2.93997,3401.4,3400.5,2.94074]
[1718383655166,0.0228791,3401.3,3400.5,2.94074]
[1718383655384,2.93988,3401.5,3400.6,2.96832453]
[1718383655679,2.93988,3401.5,3400.7,2.99936479]
[1718383655986,0.0228791,3401.4,3400.7,2.99936479]
[1718383656209,2.93944,3402.0,3401.2,2.9401]
[1718383656339,2.93947,3402.0,3401.2,2.9401]
[1718383656682,2.93945,3402.0,3401.3,1.43344514]
[1718383656985,3.0412,3402.3,3400.8,6.32147]
[1718383656986,2.93995,3401.5,3400.8,6.32147]
[1718383657135,0.0228791,3401.4,3400.9,3.0]
[1718383657336,2.93995,3401.5,3401.0,1.43344514]
[1718383657945,2.93875,3402.9,3401.6,2.93978]
[1718383658185,2.93927,3402.2,3401.6,1.43344514]
[1718383658479,0.0228791,3402.1,3401.6,1.43344514]
[1718383658909,2.93919,3402.3,3401.7,1.43344514]
[1718383659185,2.93905,3402.5,3401.7,4.37306514]
[1718383659334,2.93911,3402.4,3401.7,4.37306514]
[1718383659536,0.0228791,3402.3,3401.7,4.37306514]
[1718383659780,2.93911,3402.4,3401.7,4.37306514]
[1718383659997,2.93878,3402.8,3402.0,2.93936]
[1718383660312,2.93903,3402.5,3402.0,1.43344514]
[1718383660438,2.93893,3402.6,3401.9,3.0]
[1718383660639,0.0228791,3402.5,3401.5,3.0]
[1718383660943,2.93995,3401.5,3401.2,3.0]
[1718383661141,2.9398,3401.6,3400.9,3.0]
[1718383661142,0.0228791,3401.4,3400.9,3.0]
[1718383661391,0.0228791,3401.4,3400.5,0.29752134]
[1718383661392,2.94014,3401.2,3400.5,0.29752134]
[1718383661655,2.94014,3401.2,3400.6,1.43344514]
[1718383661857,2.93989,3401.5,3400.7,2.94056]
[1718383662062,2.94015,3401.2,3400.7,1.43344514]
[1718383662597,2.94005,3401.3,3400.6,3.0]
[1718383662742,2.94023,3401.1,3400.6,1.43344514]
[1718383663113,0.0228791,3401.2,3400.6,1.43344514]
[1718383663114,2.94014,3401.2,3400.6,1.43344514]
[1718383663385,2.94005,3401.3,3400.6,1.43344514]
[1718383663386,2.9631091,3401.1,3400.6,1.43344514]
[1718383664542,2.9631091,3401.1,3400.1,0.29163167]
[1718383664543,2.94048,3400.8,3400.1,0.29163167]
[1718383664813,0.61319501,3401.1,3399.6,2.94152]
[1718383664814,2.94078,3400.5,3399.6,2.94152]
[1718383665104,2.94078,3400.5,3399.7,4.37486514]
[1718383665105,0.0228791,3400.4,3399.7,4.37486514]
[1718383665424,0.0228791,3400.4,3399.7,1.43344514]
[1718383665573,2.94117,3400.0,3399.3,0.30426468]
[1718383665771,2.94136,3399.8,3399.3,1.43344514]
[1718383666001,2.94152,3399.6,3398.9,2.94212]
[1718383666216,0.0228791,3399.5,3398.9,4.37556514]
[1718383666378,0.0228791,3399.5,3398.9,4.66664697]
[1718383666698,0.0228791,3399.5,3398.9,4.37556514]
[1718383666870,2.9411,3400.1,3399.3,2.94177]
[1718383667071,2.94023,3401.1,3399.9,2.9412]
[1718383667286,2.94059,3400.7,3399.9,1.43344514]
[1718383667487,0.0228791,3400.6,3399.7,2.94135]
[1718383667676,2.94084,3400.4,3399.8,4.43344514]
[1718383667987,2.941,3400.3,3399.8,5.46508365]
[1718383668309,2.94022,3401.1,3400.4,2.94081]
[1718383668594,0.0228791,3401.0,3400.3,2.9409]
[1718383668807,2.9631891,3401.0,3400.1,2.94107]
[1718383668963,2.94056,3400.8,3400.2,4.43344514]
[1718383669164,2.94067,3400.6,3400.2,1.43344514]
[1718383669391,2.9636991,3400.5,3399.9,3.0]
[1718383669615,2.9636991,3400.5,3399.3,5.94178]
[1718383669616,2.9411,3400.1,3399.3,5.94178]
[1718383669761,2.94093,3400.3,3399.4,2.36572314]
[1718383669965,2.9638891,3400.2,3399.5,2.94152]
[1718383670275,2.94037,3401.0,3399.8,2.94134]
[1718383670483,5.93971,3401.7,3399.8,2.94134]
[1718383670484,2.94052,3400.8,3399.9,1.43344514]
[1718383670684,2.9634491,3400.7,3399.9,4.37468514]
[1718383670871,2.94066,3400.6,3399.9,1.43344514]
[1718383671069,2.94057,3400.7,3399.9,1.43344514]
[1718383671270,0.0228791,3400.6,3399.9,1.43344514]
[1718383671515,2.94076,3400.5,3399.9,1.43344514]
[1718383671807,2.94109,3400.1,3399.8,3.0]
[1718383672010,2.94109,3400.1,3399.6,3.0]
[1718383672213,2.94109,3400.1,3399.7,1.43344514]
[1718383672374,2.94109,3400.1,3399.5,3.0]
[1718383672375,2.94118,3400.0,3399.5,3.0]
[1718383672706,2.94118,3400.0,3399.5,1.43344514]
[1718383672707,2.94129,3399.9,3399.5,1.43344514]
[1718383672934,2.94135,3399.8,3399.3,3.0]
[1718383673117,2.94135,3399.8,3399.4,1.43344514]
[1718383673332,2.94064,3400.7,3399.4,1.43344514]
[1718383673512,2.94079,3400.5,3399.5,1.43344514]
[1718383673708,2.94118,3400.0,3399.5,1.43344514]
[1718383673906,2.94118,3400.0,3399.1,2.94194]
[1718383673907,2.94128,3399.9,3399.1,2.94194]
[1718383674120,2.94128,3399.9,3399.2,4.37529514]
[1718383674620,2.94119,3400.0,3399.3,3.0]
[1718383674819,2.94084,3400.4,3399.7,2.94143]
[1718383675009,2.94034,3401.0,3399.8,1.43344514]
[1718383675336,2.94016,3401.2,3400.3,2.94084]
[1718383675533,2.94016,3401.2,3400.4,1.45366438]
[1718383675707,2.94016,3401.2,3400.4,1.89311482]
[1718383675905,2.93984,3401.6,3400.5,2.96997157]
[1718383675906,2.93986,3401.6,3400.5,2.96997157]
[1718383676219,2.93997,3401.4,3400.6,7.37402514]
[1718383676422,2.93997,3401.4,3400.7,2.99935504]
[1718383676599,2.93997,3401.4,3400.7,4.43280018]
[1718383676795,2.9398,3401.6,3400.8,1.43344514]
[1718383677111,2.9626791,3401.6,3400.9,2.94039]
[1718383677503,2.93944,3402.0,3401.3,2.94004]
[1718383677703,2.93911,3402.4,3401.6,2.93978]
[1718383677922,2.93919,3402.3,3401.6,2.93978]
[1718383678090,0.0228791,3402.2,3401.7,2.93969]
[1718383678305,0.0228791,3402.2,3401.6,2.93979]
[1718383679237,2.93937,3402.1,3401.4,1.43344514]
[1718383679438,2.9391,3402.4,3401.4,1.43344514]
[1718383679439,2.9391,3402.4,3401.4,4.87079265]
[1718383679609,2.93903,3402.5,3401.8,2.93961]
[1718383679809,2.93903,3402.5,3401.8,4.37305514]
[1718383680190,2.93863,3403.0,3401.8,2.16472065]
[1718383680392,2.9384,3403.3,3401.9,1.43344514]